bitfinex-derivatives/quotes_ETHF0:USTF0_20260316
["timestamp","ask_amount","ask_price","bid_price","bid_amount"]
[1773697838139,7.74468407,2366.7,2365.4,2.97751396]
[1773697838537,7.74468407,2366.7,2365.5,3.05676333]
[1773697838740,7.74468407,2366.7,2365.6,3.05676333]
[1773697838941,7.74468407,2366.7,2365.7,3.25683968]
[1773697839344,7.74468407,2366.7,2365.7,9.78883968]
[1773697839544,7.74468407,2366.7,2365.7,3.25683968]
[1773697841247,7.74468407,2366.7,2365.9,3.29913921]
[1773697843844,7.74468407,2366.7,2366.0,8.23605916]
[1773697844050,7.74468407,2366.7,2366.0,4.84073452]
[1773697844251,7.74468407,2366.7,2365.8,4.84073452]
[1773697844452,7.74468407,2366.7,2365.5,9.91693126]
[1773697844745,7.74468407,2366.7,2365.2,0.21138]
[1773697844746,7.74468407,2366.6,2365.1,3.38593126]
[1773697845149,7.74468407,2366.6,2365.0,11.12779512]
[1773697845346,5.81427648,2366.5,2364.9,3.37488594]
[1773697845542,7.74468407,2366.4,2364.6,3.58229691]
[1773697845747,7.74468407,2366.2,2364.5,3.37630406]
[1773697845945,7.74468407,2366.2,2364.7,4.80793209]
[1773697846155,7.74468407,2366.0,2364.6,8.21422305]
[1773697846456,7.74468407,2365.8,2364.6,10.14873096]
[1773697846947,7.74468407,2365.8,2364.6,3.61773096]
[1773697847147,7.74468407,2365.8,2364.5,0.00543715]
[1773697847553,7.74468407,2365.6,2364.5,0.00543715]
[1773697849349,7.74468407,2365.6,2364.1,10.14765414]
[1773697849550,7.74468407,2365.6,2364.1,3.61665414]
[1773697849746,7.74468407,2365.6,2364.1,0.21148]
[1773697849952,7.74468407,2365.4,2364.1,0.21148]
[1773697850152,7.74468407,2365.4,2364.1,3.84753219]
[1773697850355,7.74468407,2365.2,2364.1,3.64079642]
[1773697850555,7.74975775,2365.2,2364.1,3.64079642]
[1773697850853,7.74975775,2365.2,2364.3,3.89455976]
[1773697851751,7.74468407,2365.7,2364.5,3.91060872]
[1773697852151,7.74468407,2365.7,2364.7,3.8998118]
[1773697852748,7.749103,2365.7,2364.7,3.8998118]
[1773697854247,7.749103,2365.7,2364.9,4.11138239]
[1773697854452,0.00441893,2365.7,2364.9,4.11138239]
[1773697854953,7.50155312,2365.7,2364.6,4.10068493]
[1773697860766,0.00441893,2365.7,2365.0,3.9745166]
[1773697861661,7.59910293,2366.7,2365.2,3.96973657]
[1773697861955,7.59910293,2366.7,2365.4,3.95928254]
[1773697862150,7.59910293,2366.7,2365.6,3.95928254]
[1773697862552,7.60279657,2366.7,2365.6,3.95928254]
[1773697862752,7.60279657,2366.7,2365.8,3.97279669]
[1773697862960,7.60279657,2366.7,2365.8,3.97597747]
[1773697863355,7.60279657,2366.7,2365.4,3.95535452]
[1773697863553,7.60279657,2366.7,2364.9,3.9585353]
[1773697863759,7.59910293,2366.5,2364.9,3.9585353]
[1773697863958,6.00373515,2366.4,2364.9,4.82469976]
[1773697864158,7.59910293,2366.3,2364.7,3.94814849]
[1773697864359,7.59910293,2366.1,2364.7,3.94814849]
[1773697864563,7.59910293,2365.9,2364.7,0.00383231]
[1773697864758,7.59910293,2365.7,2364.7,0.00383231]
[1773697864959,7.59910293,2365.6,2364.7,0.00383231]
[1773697865360,7.59910293,2365.6,2364.7,3.96133273]
[1773697865959,7.59910293,2366.1,2365.1,3.94718071]
[1773697866567,7.59910293,2366.1,2365.3,3.9739483]
[1773697866769,7.59910293,2366.4,2365.5,3.9739483]
[1773697868469,7.59910293,2366.4,2365.3,3.94521441]
[1773697869565,7.59910293,2366.4,2365.0,3.89961588]
[1773697870172,7.59910293,2366.4,2365.2,3.90658241]
[1773697870571,7.59910293,2366.4,2365.4,3.90658241]
[1773697873366,7.59910293,2366.4,2365.6,3.83148953]
[1773697873771,7.59910293,2366.4,2365.7,0.21134]
[1773697875673,0.00369364,2366.7,2365.9,3.79479629]
[1773697876073,7.60279657,2366.7,2366.1,3.78480937]
[1773697876276,7.60279657,2366.7,2365.9,6.517]
[1773697876471,7.60279657,2366.7,2365.9,3.78509877]
[1773697876876,7.60279657,2366.7,2365.7,3.99643877]
[1773697877073,7.60279657,2366.7,2365.7,3.98648458]
[1773697879277,7.60279657,2366.7,2365.8,3.73105202]
[1773697880578,7.60279657,2366.7,2365.9,8.54176901]
[1773697880878,7.60279657,2366.7,2365.9,3.71247436]
[1773697881074,7.60279657,2366.7,2366.0,4.82929465]
[1773697881281,7.60279657,2366.7,2366.1,3.69844798]
[1773697881578,7.60279657,2366.7,2365.9,6.515]
[1773697881777,7.60279657,2366.7,2365.9,10.21344798]
[1773697882278,7.60279657,2366.7,2365.6,3.88201483]
[1773697882480,7.60279657,2366.7,2365.7,3.67067483]
[1773697882675,7.60279657,2366.7,2365.7,8.25215906]
[1773697882874,7.60279657,2366.7,2365.8,3.66058564]
[1773697884077,0.00369364,2366.7,2365.8,3.66058564]
[1773697884380,0.20591021,2367.4,2365.8,3.66058564]
[1773697884381,7.37037248,2367.1,2366.2,3.65552548]
[1773697884679,7.37037248,2367.6,2366.4,3.65552548]
[1773697884870,7.37037248,2367.4,2366.4,3.65552548]
[1773697885277,7.37479446,2367.4,2366.4,3.6593917]
[1773697885674,7.37479446,2367.4,2366.6,3.6355107]
[1773697885870,0.00442198,2367.4,2366.6,3.6355107]
[1773697886074,7.37037248,2367.9,2366.8,3.62610397]
[1773697886474,7.37037248,2367.9,2367.0,3.68600741]
[1773697886674,7.37037248,2367.9,2367.2,3.68600741]
[1773697887074,7.37344609,2367.9,2367.2,3.68600741]
[1773697887275,0.00307361,2367.9,2367.2,3.68600741]
[1773697887474,0.00307361,2367.9,2367.4,3.67759078]
[1773697887678,7.37037248,2368.2,2367.4,3.67759078]
[1773697887873,7.37037248,2368.7,2367.6,3.67759078]
[1773697888080,7.37037248,2368.7,2367.5,4.71041532]
[1773697888081,7.37037248,2368.7,2367.8,3.66829733]
[1773697888678,7.37566218,2368.7,2367.8,3.66829733]
[1773697889180,7.37037248,2368.5,2367.3,3.6556295]
[1773697889570,7.37037248,2368.5,2367.1,3.69433984]
[1773697889980,7.37037248,2368.5,2367.2,4.79886111]
[1773697890282,7.37037248,2368.5,2367.1,3.69433984]
[1773697890581,7.37037248,2368.5,2367.2,8.48247657]
[1773697890881,7.37037248,2368.5,2367.2,3.68361546]
[1773697891078,7.37037248,2368.5,2367.4,3.67410588]
[1773697891276,7.37037248,2368.5,2367.2,3.67607381]
[1773697892275,7.37037248,2368.5,2367.4,3.80258518]
[1773697893283,7.37037248,2368.5,2367.1,3.81256739]
[1773697897686,7.37037248,2368.5,2367.3,3.79931664]
[1773697898082,7.37566218,2368.7,2367.5,3.79002354]
[1773697898482,0.0052897,2368.7,2367.7,3.8010177]
[1773697898681,0.0052897,2368.7,2367.9,3.8010177]
[1773697898887,0.0052897,2368.7,2368.0,3.79175512]
[1773697899083,0.60640329,2369.2,2368.2,3.78646542]
[1773697899288,0.60640329,2369.2,2368.0,3.90127704]
[1773697899289,0.60640329,2369.2,2368.4,3.80725301]
[1773697899679,0.60640329,2369.2,2368.6,3.80725301]
[1773697900083,7.98157806,2369.2,2368.6,0.00302294]
[1773697901492,7.37037248,2370.1,2368.7,3.75357271]
[1773697901789,7.37037248,2370.1,2368.8,3.96463271]
[1773697901992,7.37037248,2371.1,2369.6,3.7443999]
[1773697902182,7.37037248,2371.1,2369.8,3.7443999]
[1773697902388,7.37037248,2371.1,2369.7,4.70819082]
[1773697902585,7.3742265,2371.1,2369.6,3.74759382]
[1773697902893,7.3742265,2371.1,2369.7,3.74759382]
[1773697903192,7.3742265,2371.1,2369.8,3.79389378]
[1773697903487,7.3742265,2371.1,2370.0,3.79389378]
[1773697903687,0.00385402,2371.1,2370.2,3.79389378]
[1773697904084,0.00385402,2371.1,2370.4,3.78463903]
[1773697904293,7.3742265,2371.1,2369.0,3.7100183]
[1773697904592,7.3742265,2371.1,2369.5,3.7100183]
[1773697904787,7.37037248,2370.9,2369.5,3.7100183]
[1773697905294,7.37037248,2370.7,2368.9,3.70735066]
[1773697905492,7.37037248,2370.5,2367.7,3.70735066]
[1773697905690,7.37037248,2370.3,2368.3,4.759442]
[1773697905885,7.37037248,2370.1,2368.1,3.70735066]
[1773697906091,7.37037248,2369.9,2368.1,3.70735066]
[1773697906286,7.37037248,2369.7,2368.2,4.759442]
[1773697906492,7.37037248,2369.5,2368.1,3.71051249]
[1773697906789,7.37037248,2369.3,2368.3,3.75776402]
[1773697906994,7.37476596,2369.3,2368.3,3.75776402]
[1773697907190,7.37476596,2369.3,2368.5,3.7488638]
[1773697907791,7.37476596,2369.3,2368.3,3.75387004]
[1773697908087,7.37476596,2369.3,2368.6,8.14525153]
[1773697908290,7.37476596,2369.3,2368.6,3.744641]
[1773697908898,7.37476596,2369.3,2368.2,3.7595898]
[1773697909293,7.37476596,2369.3,2368.2,4.39217989]
[1773697909496,7.37476596,2369.3,2368.1,0.00316183]
[1773697910788,7.37476596,2369.3,2368.1,3.78589839]
[1773697910991,7.37476596,2369.3,2368.3,3.77359828]
[1773697911587,7.37476596,2369.3,2368.5,3.82707497]
[1773697912993,7.37476596,2369.3,2368.6,8.40602015]
[1773697913193,0.00439348,2369.3,2368.7,3.81337949]
[1773697913598,7.04613132,2369.7,2368.9,3.68562513]
[1773697914599,7.0502409,2369.7,2368.9,3.68562513]
[1773697915198,7.0502409,2369.7,2368.6,3.36792861]
[1773697915803,7.0502409,2369.7,2368.2,3.1454756]
[1773697916197,7.0502409,2369.7,2368.4,7.5232781]
[1773697917203,7.36187797,2369.5,2368.4,7.5232781]
[1773697917403,7.36187797,2369.3,2368.4,4.59099763]
[1773697917799,7.36187797,2369.3,2368.2,2.92426925]
[1773697918003,7.36187797,2369.3,2368.1,0.00316183]
[1773697918396,7.36187797,2369.3,2368.3,2.91407172]
[1773697918803,7.36187797,2369.3,2368.5,2.91407172]
[1773697920105,7.36187797,2369.3,2368.6,7.77873148]
[1773697920305,7.36187797,2369.3,2368.6,4.88225096]
[1773697920505,7.36187797,2369.3,2368.4,2.92121325]
[1773697920707,7.36187797,2369.3,2368.1,2.92437508]
[1773697921201,7.36187797,2369.3,2368.2,4.69044412]
[1773697921407,7.36187797,2369.3,2368.1,2.92437508]
[1773697922202,7.36187797,2369.3,2368.1,0.00316183]
[1773697923300,7.36187797,2369.1,2368.1,0.00316183]
[1773697923508,7.36187797,2368.9,2368.1,0.00316183]
[1773697923706,7.36187797,2368.8,2367.6,2.88470448]
[1773697924104,7.36187797,2368.8,2367.1,2.87911471]
[1773697924506,7.36187797,2368.8,2365.8,8.45306]
[1773697924507,11.59087797,2368.6,2366.5,2.87902468]
[1773697924807,7.36187797,2368.2,2366.5,2.88430092]
[1773697925011,7.36187797,2368.0,2366.5,2.88430092]
[1773697925202,7.36187797,2367.8,2366.5,0.00527624]
[1773697925408,7.36187797,2367.6,2366.5,0.00527624]
[1773697925706,7.36187797,2367.4,2365.3,2.90740285]
[1773697925906,7.36187797,2367.2,2365.3,2.90740285]
[1773697926110,10.67979837,2367.5,2365.5,2.89870808]
[1773697926111,7.36187797,2367.0,2365.5,2.89870808]
[1773697926309,5.9208112,2366.9,2365.5,2.89870808]
[1773697926506,7.36187797,2366.7,2365.5,0.00448011]
[1773697928108,7.36187797,2366.5,2365.0,3.01908974]
[1773697928405,7.36187797,2366.5,2364.6,3.04247194]
[1773697928605,5.90222306,2366.4,2364.6,3.04247194]
[1773697928909,7.36187797,2366.3,2364.6,3.04247194]
[1773697929108,7.36187797,2366.1,2364.6,3.04782397]
[1773697929508,7.36187797,2365.9,2364.6,3.04782397]
[1773697930613,7.36187797,2365.7,2364.6,3.04782397]
[1773697930912,0.00490103,2366.3,2364.6,3.04782397]
[1773697930913,7.36187797,2365.5,2364.6,3.04782397]
[1773697931108,7.36187797,2365.4,2364.6,3.04782397]
[1773697931714,7.36187797,2365.4,2364.6,0.00535203]
[1773697931906,7.36187797,2365.4,2364.6,3.06519616]
[1773697932313,14.52087797,2365.4,2364.6,3.06519616]
[1773697932910,7.36187797,2365.6,2364.6,3.06519616]
[1773697933114,7.36187797,2365.6,2364.8,3.05032476]
[1773697933417,7.36187797,2365.8,2365.0,3.04602126]
[1773697933616,14.52287797,2365.8,2365.0,3.04602126]
[1773697934109,7.36187797,2365.7,2364.6,0.00535203]
[1773697935915,7.36187797,2365.5,2364.6,0.00535203]
[1773697936217,7.36187797,2365.3,2364.6,0.00535203]
[1773697936423,7.36187797,2365.1,2364.6,0.00535203]
[1773697936714,7.36187797,2365.2,2364.6,0.00535203]
[1773697937108,0.21171646,2366.0,2364.6,0.00535203]
[1773697937109,7.36187797,2365.6,2364.6,3.01359117]
[1773697937312,7.36187797,2365.6,2364.8,2.81481938]
[1773697937614,7.36187797,2365.6,2364.9,4.76574121]
[1773697937814,7.36187797,2365.6,2364.9,7.58056059]
[1773697938014,7.36187797,2365.6,2364.9,4.76574121]
[1773697938215,7.36187797,2365.6,2364.6,3.02324268]
[1773697938612,7.36187797,2365.6,2364.7,4.76574121]
[1773697939616,7.36187797,2365.6,2364.6,3.02324268]
[1773697940821,14.53487797,2365.6,2364.8,2.78150621]
[1773697941122,7.36187797,2365.5,2364.6,0.00535203]
[1773697941324,7.36187797,2365.5,2364.1,2.77213888]
[1773697941720,7.36187797,2365.5,2364.1,7.55847963]
[1773697942323,7.36187797,2365.5,2364.1,4.7894834]
[1773697942517,7.36187797,2365.5,2364.1,0.00314265]
[1773697944322,7.19570795,2365.2,2362.5,0.21162]
[1773697944521,7.19570795,2365.2,2361.9,0.21168]
[1773697944522,7.19570795,2364.4,2361.9,0.21168]
[1773697944721,7.19570795,2364.2,2361.9,2.47685471]
[1773697945025,7.19570795,2364.0,2362.0,2.26517471]
[1773697945225,7.19869038,2364.0,2362.0,2.27034007]
[1773697945525,7.19869038,2364.0,2362.1,1.45718462]
[1773697946320,7.19869038,2364.0,2362.2,2.17957801]
[1773697946822,7.19869038,2364.0,2362.0,2.18474337]
[1773697947225,7.19570795,2363.8,2362.4,2.17145191]
[1773697947525,7.19570795,2363.8,2362.5,4.4527404]
[1773697947825,7.19570795,2363.6,2362.5,2.17110195]
[1773697948723,7.19570795,2363.6,2362.7,2.15546688]
[1773697948923,7.18648341,2363.6,2362.7,2.15546688]
[1773697949129,0.00298243,2364.0,2362.9,2.56832312]
[1773697949423,7.19869038,2364.0,2363.0,4.50535398]
[1773697949925,7.19869038,2364.0,2362.9,2.56832312]
[1773697950326,7.19869038,2364.0,2363.1,2.55208879]
[1773697950720,7.19869038,2364.0,2363.3,2.55208879]
[1773697951028,7.19869038,2364.0,2363.1,2.55208879]
[1773697951528,7.19869038,2364.0,2363.0,0.21157]
[1773697951823,7.19869038,2364.0,2362.8,2.57293751]
[1773697952529,7.19869038,2364.0,2363.0,2.53305136]
[1773697953724,7.19869038,2364.0,2362.9,0.21159]
[1773697953923,7.19869038,2364.0,2362.8,2.50632285]
[1773697954324,7.19869038,2364.0,2362.9,4.84728177]
[1773697954721,7.19869038,2364.0,2362.9,7.35953771]
[1773697955623,7.19869038,2364.0,2362.9,4.84728177]
[1773697956431,7.19869038,2364.0,2362.5,4.56092081]
[1773697956630,7.19869038,2364.0,2362.5,2.55649003]
[1773697956825,7.19869038,2364.0,2362.6,4.59587681]
[1773697957020,7.19869038,2364.0,2362.5,2.55649003]
[1773697957220,7.19570795,2363.8,2362.5,2.55649003]
[1773697957424,7.19570795,2363.8,2362.3,2.61560254]
[1773697957731,7.19570795,2363.8,2362.2,0.21165]
[1773697958826,7.19570795,2363.5,2362.0,0.00516536]
[1773697959129,7.19570795,2363.3,2362.0,0.00516536]
[1773697959520,7.19570795,2363.3,2361.6,0.2117]
[1773697960428,7.19570795,2363.3,2361.6,2.98661981]
[1773697960627,7.19570795,2363.3,2361.6,2.99108227]
[1773697961125,7.19570795,2363.3,2361.6,0.21616246]
[1773697961322,7.19570795,2362.8,2360.5,2.94306253]
[1773697961528,7.19570795,2362.6,2360.7,2.94306253]
[1773697961732,7.19570795,2362.4,2361.0,4.72460327]
[1773697961922,7.19570795,2362.2,2360.4,2.93523107]
[1773697962122,7.19570795,2362.0,2360.7,2.93523107]
[1773697962327,7.20084901,2362.0,2360.7,2.93915603]
[1773697962632,7.20084901,2362.0,2360.9,2.94436705]
[1773697963031,7.20084901,2362.0,2361.1,2.95165593]
[1773697963532,7.20084901,2362.0,2361.0,3.12413126]
[1773697964026,0.00514106,2362.0,2361.4,3.11630127]
[1773697964228,7.19570795,2362.8,2361.6,3.11630127]
[1773697964627,7.19570795,2362.8,2361.8,3.14721916]
[1773697964823,7.19570795,2362.8,2361.7,4.87364552]
[1773697965028,7.19570795,2362.8,2361.6,7.88335837]
[1773697965227,7.20035264,2362.8,2361.6,3.13941486]
[1773697966029,7.20035264,2362.8,2360.9,2.98041155]
[1773697966430,7.20035264,2362.8,2361.0,2.88506359]
[1773697966831,7.20035264,2362.8,2361.2,2.88506359]
[1773697967235,7.20035264,2362.8,2361.3,7.43915736]
[1773697967435,7.19570795,2362.6,2361.3,7.43915736]
[1773697967626,7.19570795,2362.6,2361.3,2.87730066]
[1773697968635,7.19570795,2362.6,2361.1,2.49536425]
[1773697968929,7.19570795,2362.4,2361.2,4.75683]
[1773697969228,7.19570795,2362.4,2361.1,2.38760252]
[1773697969826,7.19570795,2362.4,2361.0,0.21176]
[1773697970629,7.19570795,2362.2,2361.0,2.59026294]
[1773697970829,7.19570795,2362.1,2360.7,2.3824279]
[1773697971435,7.19570795,2362.1,2360.7,0.00392496]
[1773697972036,7.19570795,2362.1,2360.7,2.36584426]
[1773697972542,6.72882458,2361.9,2360.9,2.36386691]
[1773697972742,6.72882458,2361.8,2360.8,4.48979102]
[1773697972937,6.72882458,2361.8,2360.7,2.36779187]
[1773697973341,6.72882458,2361.8,2360.7,0.00392496]
[1773697974039,6.72882458,2361.8,2360.2,0.07370578]
[1773697974239,6.72882458,2361.8,2360.3,1.80668168]
[1773697974439,6.72882458,2361.8,2360.6,1.59486168]
[1773697974634,6.72882458,2361.8,2360.7,0.21179]
[1773697974842,6.72882458,2361.8,2360.8,1.59486168]
[1773697975142,6.72882458,2361.8,2361.0,1.58729873]
[1773697975535,6.72882458,2362.7,2361.2,1.54501427]
[1773697975735,6.72882458,2362.5,2361.2,1.75675427]
[1773697975938,6.72882458,2362.5,2361.4,1.53870265]
[1773697976336,6.72882458,2362.5,2361.5,6.08294296]
[1773697976742,6.72882458,2362.5,2361.6,1.401231]
[1773697977041,6.72882458,2362.5,2361.6,4.47155075]
[1773697977244,6.72882458,2362.5,2361.4,1.401231]
[1773697977638,6.72882458,2362.5,2361.6,1.23543313]
[1773697978038,6.72882458,2362.5,2361.7,4.61581919]
[1773697978435,6.72882458,2362.5,2361.7,5.76553783]
[1773697978648,6.72882458,2362.5,2361.8,1.14971864]
[1773697978847,7.03560802,2362.7,2361.8,1.14971864]
[1773697979050,7.03560802,2362.7,2361.9,4.58488963]
[1773697979251,7.03560802,2362.7,2361.7,1.14225407]
[1773697979450,0.00464469,2362.8,2361.7,1.35394407]
[1773697979649,0.00464469,2362.8,2361.9,1.14183072]
[1773697979955,0.00464469,2362.8,2362.0,0.81881713]
[1773697980247,0.00464469,2362.8,2362.1,1.13439034]
[1773697980451,7.04025271,2362.8,2362.1,1.13439034]
[1773697980942,0.00464469,2362.8,2362.2,5.50700996]
[1773697981348,0.00464469,2362.8,2362.2,1.06534691]
[1773697981548,7.04025271,2362.8,2361.8,1.05132849]
[1773697981949,7.04025271,2362.8,2362.0,5.74587909]
[1773697982150,7.04025271,2362.8,2362.1,1.0439374]
[1773697982351,7.04025271,2362.8,2361.8,4.6945506]
[1773697982553,7.04025271,2362.8,2361.8,1.00747288]
[1773697982854,7.04025271,2362.8,2361.9,1.00747288]
[1773697983254,7.04025271,2362.8,2362.0,4.86635924]
[1773697983552,7.04025271,2362.8,2362.0,5.52514726]
[1773697983944,7.04025271,2362.8,2362.0,0.65878802]
[1773697984148,0.00464469,2362.8,2362.2,0.65144591]
[1773697984347,7.217,2363.4,2362.2,0.65144591]
[1773697984348,7.08906359,2363.2,2362.2,0.65144591]
[1773697984549,7.08906359,2363.2,2362.3,5.31170204]
[1773697984955,7.08906359,2363.2,2362.3,0.55138664]
[1773697985156,7.08906359,2363.2,2362.5,0.54406889]
[1773697985356,7.09209559,2363.2,2362.5,0.54835821]
[1773697985556,0.003032,2363.2,2362.7,0.51946939]
[1773697985757,7.10368568,2363.6,2362.7,0.51946939]
[1773697985957,7.10368568,2363.6,2362.8,5.30957551]
[1773697986156,7.10368568,2363.6,2362.9,0.5125002]
[1773697986555,7.10368568,2363.6,2363.0,4.52316551]
[1773697986752,7.10377678,2363.8,2363.0,5.03548351]
[1773697986956,7.10377678,2363.8,2363.1,0.5052595]
[1773697987360,7.10202161,2364.3,2363.1,0.5052595]
[1773697987858,7.10558513,2364.3,2363.1,0.5052595]
[1773697988058,7.10558513,2364.3,2363.0,4.52316551]
[1773697988259,7.10558513,2364.3,2362.7,0.71335316]
[1773697988565,7.10558513,2364.3,2362.9,0.49553857]
[1773697988861,7.10558513,2364.3,2363.0,4.5111923]
[1773697989058,7.10558513,2364.3,2363.0,4.99950723]
[1773697989461,7.10558513,2364.3,2363.0,0.48831493]
[1773697989659,7.10558513,2364.3,2363.2,0.48891891]
[1773697989964,7.10558513,2364.3,2362.8,2.00638641]
[1773697989965,7.10558513,2364.3,2363.3,5.36392549]
[1773697990162,7.10558513,2364.3,2363.3,4.88220604]
[1773697990466,7.10558513,2364.3,2363.2,5.35597783]
[1773697990666,7.10558513,2364.3,2363.2,0.47377179]
[1773697990867,7.10558513,2364.3,2363.3,4.80922699]
[1773697995474,7.10558513,2364.3,2363.3,5.38020518]
[1773697995670,7.10558513,2364.3,2363.3,0.57097819]
[1773697995871,7.10558513,2364.3,2363.5,0.57097819]
[1773697996272,7.10558513,2364.3,2363.6,4.56981602]
[1773697996775,7.10558513,2364.3,2363.7,0.56380575]
[1773697996965,7.03560802,2364.4,2363.7,0.56380575]
[1773697997165,7.03560802,2364.4,2363.6,4.78134602]
[1773697997166,7.03560802,2364.4,2363.8,12.15478702]
[1773697997566,0.27458644,2365.4,2363.8,7.26526642]
[1773697997770,7.03560802,2365.3,2363.9,12.15478702]
[1773697997972,7.03560802,2365.1,2364.0,7.26526642]
[1773697998574,7.03560802,2365.1,2364.2,7.26526642]
[1773697998775,7.03560802,2365.1,2364.2,7.26993097]
[1773697998976,0.00457656,2365.3,2364.4,7.26526642]
[1773697999176,7.04018458,2365.3,2364.4,7.26526642]
[1773697999372,7.04018458,2365.3,2364.6,7.26526642]
[1773697999773,0.00457656,2365.3,2364.6,7.26526642]
[1773697999980,7.03560802,2365.2,2364.4,7.26526642]
[1773698000180,0.00457656,2365.3,2364.4,7.26526642]
[1773698000375,0.00457656,2365.3,2364.6,7.26526642]
[1773698001278,7.04018458,2365.3,2364.6,7.26526642]
[1773698001478,7.04018458,2365.3,2364.7,4.6790785]
[1773698001779,7.04018458,2365.3,2364.6,7.26526642]
[1773698003082,7.04018458,2365.3,2364.3,7.3487867]
[1773698003274,7.04018458,2365.3,2364.4,6.423]
[1773698003784,7.04018458,2365.3,2364.3,6.423]
[1773698004486,7.04018458,2365.3,2364.2,0.00466455]
[1773698006085,7.04018458,2365.3,2364.2,7.35345125]
[1773698008783,7.04018458,2365.3,2364.4,7.3487867]
[1773698009780,0.00457656,2365.3,2364.4,7.5602367]
[1773698009992,0.00457656,2365.3,2364.6,7.3487867]
[1773698010187,0.00457656,2365.3,2364.8,7.3487867]
[1773698010387,6.81053895,2365.5,2364.8,7.3487867]
[1773698011385,6.81432778,2365.5,2364.8,7.3487867]
[1773698012283,0.00378883,2365.5,2364.8,7.3487867]
[1773698012490,6.81053895,2365.9,2364.8,7.5601967]
[1773698012690,6.81053895,2365.9,2364.9,4.73207425]
[1773698012885,6.81053895,2365.9,2365.0,7.3487867]
[1773698013283,6.81053895,2365.9,2364.7,6.426]
[1773698013489,6.81458972,2365.9,2364.7,6.426]
[1773698013688,6.81053895,2365.7,2364.3,13.7797867]
[1773698014092,6.81053895,2365.5,2364.6,4.8568402]
[1773698014393,6.81053895,2365.5,2364.3,13.7797867]
[1773698014786,6.81053895,2365.5,2364.4,4.8568402]
[1773698015993,6.81053895,2365.3,2364.4,4.8568402]
[1773698016389,6.81053895,2365.3,2364.4,12.2056269]
[1773698017286,6.81053895,2365.3,2364.4,4.8568402]
[1773698018194,6.81053895,2365.3,2364.5,7.3487867]
[1773698019695,6.81053895,2365.3,2364.6,4.62368486]
[1773698019898,6.81053895,2365.3,2364.3,7.3487867]
[1773698020295,6.81053895,2365.3,2364.3,12.02319643]
[1773698020598,6.81053895,2365.3,2364.3,4.67440973]
[1773698021494,6.81053895,2365.3,2363.6,0.21152]
[1773698021495,6.81053895,2364.8,2362.7,7.3487867]
[1773698021698,6.81053895,2364.6,2362.7,7.3487867]
[1773698021998,13.15399271,2364.7,2362.6,6.65561]
[1773698021999,6.81053895,2364.4,2363.4,4.75070433]
[1773698022200,6.81053895,2364.2,2363.2,7.3487867]
[1773698022499,6.81053895,2364.0,2363.2,0.00335693]
[1773698022701,6.81053895,2363.8,2362.5,7.3487867]
[1773698023202,6.81053895,2363.8,2362.6,18.45961083]
[1773698023593,6.81053895,2363.8,2362.6,7.35358103]
[1773698023795,6.81053895,2363.8,2362.7,4.66382413]
[1773698024492,6.81053895,2363.8,2362.7,12.01261083]
[1773698026399,6.81053895,2363.8,2362.8,7.3487867]
[1773698026598,6.81053895,2363.8,2362.9,7.3487867]
[1773698026798,6.81053895,2364.1,2363.0,7.3487867]
[1773698027200,6.81053895,2364.1,2363.1,4.4434904]
[1773698027401,6.81053895,2364.1,2363.1,11.7922771]
[1773698027901,6.81053895,2364.1,2363.2,7.3487867]
[1773698030002,6.81053895,2364.1,2363.1,6.46]
[1773698030197,6.81053895,2364.1,2363.1,7.3487867]
[1773698033400,6.81053895,2364.1,2362.9,7.32017488]
[1773698033803,6.81053895,2364.1,2362.7,7.32017488]
[1773698034210,6.81053895,2364.1,2362.8,7.32017488]
[1773698034507,6.81053895,2364.1,2362.6,6.47179433]
[1773698034707,6.81053895,2364.1,2362.6,13.79196921]
[1773698035106,6.81053895,2364.1,2362.7,7.32017488]
[1773698036511,6.81053895,2364.1,2362.6,0.00479433]
[1773698037311,7.17495247,2363.9,2362.6,0.00479433]
[1773698038005,7.17495247,2363.7,2362.6,0.00479433]
[1773698038199,7.17495247,2363.5,2362.6,0.00479433]
[1773698038508,7.17495247,2363.4,2362.6,0.00479433]
[1773698040807,7.17495247,2363.4,2361.9,7.00136689]
[1773698041202,7.17495247,2363.4,2362.2,11.8659975]
[1773698041408,7.17495247,2363.4,2362.2,7.00136689]
[1773698041601,7.17495247,2363.4,2362.3,4.86463061]
[1773698041807,0.21075568,2363.6,2362.4,7.00136689]
[1773698042007,7.17495247,2363.6,2362.4,7.00136689]
[1773698042204,7.17495247,2363.6,2362.5,4.50396824]
[1773698042410,7.17495247,2363.6,2362.6,7.00136689]
[1773698042713,7.17495247,2363.6,2362.7,4.50396824]
[1773698042913,7.17495247,2363.6,2362.8,7.00136689]
[1773698044416,7.17495247,2363.8,2362.9,4.81829787]
[1773698044613,14.39295247,2363.9,2363.0,7.00136689]
[1773698045018,7.17495247,2363.8,2363.2,7.00136689]
[1773698051130,7.17495247,2364.1,2363.2,7.00136689]
[1773698051326,7.17495247,2363.9,2363.3,7.00136689]
[1773698054034,7.17871631,2364.2,2363.5,7.00136689]
[1773698054234,7.17871631,2364.2,2363.5,13.49436689]
[1773698054432,0.00376384,2364.2,2363.6,7.00136689]
[1773698054938,7.17495247,2364.6,2363.6,7.00136689]
[1773698055134,13.32234204,2364.5,2363.6,7.00136689]
[1773698055338,6.14738957,2364.4,2363.6,7.00136689]
[1773698055535,13.32234204,2364.4,2363.6,7.00136689]
[1773698055733,7.17495247,2364.4,2363.6,7.00136689]
[1773698056133,7.18031083,2364.4,2363.7,4.66242263]
[1773698056434,0.00535836,2364.4,2363.8,7.00136689]
[1773698059035,7.18031083,2364.4,2363.4,7.00136689]
[1773698059240,7.18031083,2364.4,2363.5,7.00136689]
[1773698059637,7.17495247,2364.3,2363.4,6.506]
[1773698059834,7.17495247,2364.3,2363.4,7.00136689]
[1773698068638,7.17495247,2364.3,2362.8,7.20621588]
[1773698068844,7.35854632,2364.1,2362.8,7.20621588]
[1773698069041,7.35854632,2363.9,2362.9,7.20621588]
[1773698069543,7.35854632,2363.8,2362.9,7.20621588]
[1773698071949,7.35854632,2364.1,2362.9,7.20621588]
[1773698072149,7.35854632,2364.3,2363.1,7.20621588]
[1773698072350,7.35854632,2364.1,2363.1,7.20621588]
[1773698072550,7.35854632,2364.1,2363.3,7.20621588]
[1773698073052,7.35854632,2364.1,2363.4,7.20621588]
[1773698073850,7.36390468,2364.4,2363.6,7.20621588]
[1773698074348,7.35854632,2364.2,2363.6,7.20621588]
[1773698074542,7.35854632,2364.2,2363.1,7.20621588]
[1773698074744,7.35854632,2364.2,2363.3,7.20621588]
[1773698074951,7.35854632,2364.0,2363.3,7.20621588]
[1773698075547,7.35854632,2364.0,2363.0,6.74757]
[1773698075753,7.35854632,2364.0,2363.1,13.74221588]
[1773698075946,7.35854632,2364.0,2362.5,0.21162]
[1773698076154,7.35854632,2364.0,2362.7,7.20621588]
[1773698076955,7.35854632,2363.8,2362.7,7.20621588]
[1773698078549,7.35854632,2363.8,2362.7,13.74621588]
[1773698078750,7.35854632,2363.8,2362.8,7.20621588]
[1773698079151,7.35854632,2363.6,2362.8,7.20621588]
[1773698079348,7.35854632,2363.6,2362.6,6.542]
[1773698079552,7.35854632,2363.6,2362.6,7.20621588]